Cogmind - Beta 14 *** ADVENTURER MODE // 2024.10.26 @ 10:26:09 Player: Elmgren Result: Self-destructed Performance ------------- Evolutions (4) 2000 Regions Visited (6) 1200 Robots Destroyed (25) 125 Value Destroyed (727) 727 Prototype IDs (0) 0 Alien Tech Used (0) 0 Bonus (1296) 1296 TOTAL SCORE: 5348 Bonus ------- Pacifist 200 Follower Combat Kills 525 Met Imprinter 300 Was Imprinted 300 Friendly Fire -29 Cogmind --------- Core Integrity 611/850 Matter 300/300 Energy 100/100 System Corruption 0% Temperature Cool (0) Movement Core (100) Ox1 Location -6/Factory Parts ------- > --- POWER (2) -------- (None) > --- PROPULSION (6) --- (None) > --- UTILITY (4) ------ Small Storage Unit Visual Processing Unit 0b10 Decoder Chip [Generic] > --- WEAPON (3) ------- (None) > --- INVENTORY (8) ---- Light Ion Engine Flight Unit Makeshift Flight Unit Rocket Launcher Mace Peak State ------------ > --- POWER ------------ Ion Engine Makeshift Power Source > --- PROPULSION ------- Aluminum Leg Aluminum Leg Improved Titanium Leg Makeshift Leg > --- UTILITY ---------- Small Storage Unit Visual Processing Unit 0b10 Decoder Chip [Generic] > --- WEAPON ----------- Riot Gun Heavy Machine Gun Mini Grenade Launcher > --- INVENTORY -------- Light Ion Engine Flight Unit Makeshift Flight Unit Rocket Launcher Mace [Rating: 34] Favorites ----------- Power Makeshift Power Source Engine Makeshift Power Source Propulsion Aluminum Leg Leg Aluminum Leg Utility Small Storage Unit Storage Small Storage Unit Processor Visual Processing Unit Weapon Mini Grenade Launcher Energy Gun Makeshift Laser Ballistic Gun Assault Rifle Ballistic Cannon Flak Cannon Launcher Mini Grenade Launcher Special Weapon Mining Laser Build | -11 -10 -9 -9 -7 -6 -6 ------- Run | Yrd Mat Mat Min Zio Pro Fac Slots Evolved 8 | . . 2 . . . 6 Power 1 | . . . . . . 1 Propulsion 4 | . . 2 . . . 2 Utility 2 | . . . . . . 2 Weapon 1 | . . . . . . 1 Parts Attached 23 | 6 2 4 2 3 . 6 Power 3 | 1 . . . 1 . 1 Engine 3 | 1 . . . 1 . 1 Core . | . . . . . . . Reactor . | . . . . . . . Propulsion 7 | 2 1 . 2 1 . 1 Treads . | . . . . . . . Leg 7 | 2 1 . 2 1 . 1 Wheel . | . . . . . . . Hover . | . . . . . . . Flight . | . . . . . . . Utility 3 | 1 . 1 . . . 1 Device . | . . . . . . . Storage 1 | 1 . . . . . . Processor 2 | . . 1 . . . 1 Hackware . | . . . . . . . Protection . | . . . . . . . Artifact . | . . . . . . . Weapon 10 | 2 1 3 . 1 . 3 Energy Gun 4 | 1 1 . . 1 . 1 Energy Cannon . | . . . . . . . Ballistic Gun 2 | 1 . . . . . 1 Ballistic Cannon 1 | . . 1 . . . . Launcher 1 | . . 1 . . . . Special Weapon 2 | . . 1 . . . 1 Impact Weapon . | . . . . . . . Slashing Weapon . | . . . . . . . Piercing Weapon . | . . . . . . . Special Melee Weapon . | . . . . . . . Unidentified Prototypes . | . . . . . . . Parts Lost 12 | . . . 2 . 1 9 Power 3 | . . . 1 . . 2 Propulsion 6 | . . . 1 . 1 4 Utility . | . . . . . . . Weapon 3 | . . . . . . 3 Highest Loss Streak 8 | . . . 2 . 1 8 To Critical Strikes . | . . . . . . . Average Slot Usage (%) 83 | . 85 71 81 92 92 71 Engine 10 | . 14 11 7 7 11 12 Leg 30 | . 28 22 29 40 36 19 Storage 10 | . 14 11 11 11 11 6 Processor 9 | . . 5 11 11 11 13 Energy Gun 6 | . 14 2 . 7 11 2 Ballistic Gun 3 | . 14 9 . . . 5 Ballistic Cannon 3 | . . 7 11 3 . . Launcher 7 | . . 1 11 11 11 5 Peak Build Rating 34 | 6 6 12 12 21 21 34 Average Rating 17 | 4 5 8 11 17 20 29 On Entrance 10 | . 6 6 11 11 21 20 Naked Turns . | . . . . . . . Heaviest Build 23 | 11 11 16 15 16 12 23 Greatest Support 60 | 20 20 20 30 50 50 60 Greatest Overweight (x) 2 | . . . . . . 2 Average Overweight (x) . | . . . . . . . Largest Inventory Capacity 8 | 8 8 8 8 8 8 8 Average Capacity 7 | 6 8 8 8 8 8 8 Most Carried 8 | 1 2 8 7 8 8 7 Average Carried 6 | . 1 4 6 7 8 5 Final Capacity 8 | 8 8 8 8 8 8 8 Final Carried 8 | 1 2 6 6 8 8 5 Class Distribution -------------------- 80% | Mutant 12% | Skirmisher 6% | Derelict-Skirmisher Dominant Class ---------------- Mutant | -10/Materials Mutant | -9/Materials Mutant | -9/Mines Mutant | -7/Zion Mutant | -6/Proximity Caves Skirmisher | -6/Factory Resources | -11 -10 -9 -9 -7 -6 -6 ----------- Run | Yrd Mat Mat Min Zio Pro Fac Matter Collected 863 | 182 . 347 159 35 20 120 Remotely . | . . . . . . . Salvage Created 609 | . . 341 96 . 53 119 Parts 52 | . . 36 4 . 3 9 Haulers Intercepted . | . . . . . . . Recyclers Shooed . | . . . . . . . Parts Field Recycled . | . . . . . . . Retrieved Matter . | . . . . . . . Parts Self-Destructed 7 | . . . . . 7 . Prevented 5 | . . . . . 5 . Kills | -11 -10 -9 -9 -7 -6 -6 ------- Run | Yrd Mat Mat Min Zio Pro Fac Combat Hostiles Destroyed 18 | . . 9 5 . 2 2 Guns 7 | . . 5 . . . 2 Cannons 4 | . . 4 . . . . AOE 7 | . . . 5 . 2 . Classes Destroyed 9 | . . 7 1 . . 1 Worker 2 | . . 2 . . . . Builder 1 | . . 1 . . . . Tunneler 2 | . . 2 . . . . Watcher 2 | . . 2 . . . . Swarmer 4 | . . 3 . . 1 . Grunt 8 | . . 3 4 . 1 . Duelist 1 | . . . 1 . . . Sentry 4 | . . 3 . . . 1 Programmer 1 | . . . . . . 1 Best Kill Streak 4 | . . 4 3 . 2 1 Combat Bots Only 3 | . . 3 3 . 2 1 Max Kills in Single Turn 2 | . . 2 2 . 2 1 Gunslinging . | . . . . . . . Exploded 2 | . . . 2 . 2 . Melee . | . . . . . . . Uniques/NPCs Destroyed . | . . . . . . . Combat | -11 -10 -9 -9 -7 -6 -6 -------- Run | Yrd Mat Mat Min Zio Pro Fac Hostile Shots Fired 210 | . . 46 10 . 38 116 Missed 77 | . . 14 3 . 16 44 Damage Taken 1759 | . . 339 123 . 261 1036 Core 434 | . . 64 8 . 123 239 Absorbed by Shields . | . . . . . . . Ignored by Resistances 509 | . . 102 33 . 76 298 Core Remaining (%) 83 | 100 100 . . . 51 . Volleys Fired 63 | . 2 29 5 . 9 18 Largest 2 | . 2 2 2 . 2 2 Hottest 80 | . 60 74 74 . 80 80 Shots Fired 114 | . 4 58 10 . 11 31 Gun 71 | . 4 27 . . 9 31 Cannon 32 | . . 27 5 . . . Launcher 11 | . . 4 5 . 2 . Special . | . . . . . . . Kinetic 77 | . 2 52 5 . . 18 Thermal 13 | . 2 2 . . 9 . Explosive 11 | . . 4 5 . 2 . Electromagnetic 13 | . . . . . . 13 Robot Hit Streak 19 | . . 19 9 . 4 13 Robot Miss Streak 11 | . 4 11 3 . 2 3 Penetration Max . | . . . . . . . Secondary Targets . | . . . . . . . Shots Hit Robots 77 | . . 34 6 . 8 29 Core Hits 58 | . . 33 12 . 4 9 Critical Kills . | . . . . . . . Critical Parts Destroyed . | . . . . . . . Critical Strikes 1 | . . . . . 1 . Burn 1 | . . . . . 1 . Melee Attacks . | . . . . . . . Impact . | . . . . . . . Slashing . | . . . . . . . Piercing . | . . . . . . . Sneak Attacks . | . . . . . . . Combat Hostiles . | . . . . . . . Follow-up Attacks . | . . . . . . . Damage Inflicted 2042 | . . 784 432 . 283 543 Guns 868 | . . 236 . . 102 530 Cannons 461 | . . 372 89 . . . Explosions 700 | . . 176 343 . 181 . Melee . | . . . . . . . Ramming 13 | . . . . . . 13 Kinetic 1107 | . . 608 89 . . 410 Thermal 102 | . . . . . 102 . Explosive 700 | . . 176 343 . 181 . Electromagnetic 120 | . . . . . . 120 Impact . | . . . . . . . Slashing . | . . . . . . . Piercing . | . . . . . . . Highest Corruption . | . . . . . . . Average Corruption . | . . . . . . . Corruption Purged . | . . . . . . . Corruption Blocked . | . . . . . . . Overload Shots . | . . . . . . . Overflow Damage 27 | . . . 11 . 16 . Projectiles . | . . . . . . . Explosions 27 | . . . 11 . 16 . Melee . | . . . . . . . Knockbacks 12 | . . 8 4 . . . Impact . | . . . . . . . Kinetic 12 | . . 8 4 . . . Secondary . | . . . . . . . Self-Inflicted Damage 68 | . . 24 44 . . . Shots 3 | . . 1 2 . . . Rammed . | . . . . . . . Targets Rammed 1 | . . . . . . 1 Kicked 1 | . . . . . . 1 Crushed . | . . . . . . . Highest Temperature 95 | . . 32 15 . 95 86 Average Temperature 24 | . . 12 6 . 33 34 Received Heat Transfer 345 | . . 168 39 . 72 66 Siege Activations . | . . . . . . . Robots Corrupted . | . . . . . . . Combat Hostiles . | . . . . . . . Parts Fried . | . . . . . . . Impact Corruptions . | . . . . . . . Robots Melted . | . . . . . . . Combat Hostiles . | . . . . . . . Parts Melted . | . . . . . . . Heat Transferred 296 | . . . . . 296 . Parts Sabotaged . | . . . . . . . Parts Stolen . | . . . . . . . Parts Stripped . | . . . . . . . Power Chain Reactions . | . . . . . . . Alert | -11 -10 -9 -9 -7 -6 -6 ------- Run | Yrd Mat Mat Min Zio Pro Fac Peak Influence 256 | . . 256 244 . . 229 Initial 84 | . . . 84 . . 57 Average 79 | . . 81 174 . . 76 Maximum Alert Level 1 | . . 1 1 . . 1 Low Security (%) 88 | 100 100 83 66 . . 94 Level 1 11 | . . 16 33 . . 5 Level 2 . | . . . . . . . Level 3 . | . . . . . . . Level 4 . | . . . . . . . Level 5 . | . . . . . . . High Security . | . . . . . . . Max Security . | . . . . . . . Squads Dispatched 5 | . . 3 . . . 2 Investigation 2 | . . 2 . . . . Extermination 1 | . . . . . . 1 Reinforcement 1 | . . 1 . . . . Assault . | . . . . . . . Garrison 1 | . . . . . . 1 Intercept . | . . . . . . . Searches Triggered . | . . . . . . . Construction Impeded . | . . . . . . . Haulers Reinforced . | . . . . . . . Active Scanning Responses . | . . . . . . . Cargo Convoy Interrupts . | . . . . . . . Stealth | -11 -10 -9 -9 -7 -6 -6 --------- Run | Yrd Mat Mat Min Zio Pro Fac Distress Signals 2 | . . 2 . . . . Communications Jammed . | . . . . . . . Distress Signals . | . . . . . . . Times Spotted 52 | . 1 17 5 . 12 17 Peak Tracking Total 7 | . 1 4 3 . 3 7 Tactical Retreats 4 | . . 1 . . 1 2 Traps | -11 -10 -9 -9 -7 -6 -6 ------- Run | Yrd Mat Mat Min Zio Pro Fac Traps Triggered 2 | . 1 1 . . . . Indirectly . | . . . . . . . Trap Hack Attempts . | . . . . . . . Triggered . | . . . . . . . Disarmed . | . . . . . . . Reprogrammed . | . . . . . . . Reused . | . . . . . . . Traps Extracted . | . . . . . . . Installed . | . . . . . . . Triggered . | . . . . . . . Machines | -11 -10 -9 -9 -7 -6 -6 ---------- Run | Yrd Mat Mat Min Zio Pro Fac Machines Disabled 2 | . . . 2 . . . Max in Single Turn 2 | . . . 2 . . . Machines Repaired . | . . . . . . . Machines Dismantled . | . . . . . . . Machines Sabotaged . | . . . . . . . Overloaded Fab Kills . | . . . . . . . Hacking | -11 -10 -9 -9 -7 -6 -6 --------- Run | Yrd Mat Mat Min Zio Pro Fac Machines Accessed 6 | . 2 3 . 1 . . Terminals 4 | . 2 2 . . . . Fabricators . | . . . . . . . Repair Stations . | . . . . . . . Recycling Units . | . . . . . . . Scanalyzers 1 | . . 1 . . . . Garrison Access . | . . . . . . . Total Hacks 19 | . 3 11 . 5 . . Successful 12 | . 2 5 . 5 . . Failed 7 | . 1 6 . . . . Catastrophic 1 | . . 1 . . . . Database Lockouts . | . . . . . . . Manual . | . . . . . . . Terminals 11 | . 3 8 . . . . Fabricators . | . . . . . . . Repair Stations . | . . . . . . . Recycling Units . | . . . . . . . Scanalyzers 3 | . . 3 . . . . Garrison Access . | . . . . . . . Terminal Hacks 10 | . 2 3 . 5 . . Record 1 | . 1 . . . . . Part Schematic 5 | . . . . 5 . . Locate Traps 1 | . . 1 . . . . Dispatch Records 1 | . . 1 . . . . Zone Layout 2 | . 1 1 . . . . Fabricator Hacks . | . . . . . . . Repair Station Hacks . | . . . . . . . Recycling Unit Hacks . | . . . . . . . Scanalyzer 2 | . . 2 . . . . Insert Component 1 | . . 1 . . . . Analyze 1 | . . 1 . . . . Garrison Access Hacks . | . . . . . . . Unauthorized Hacks . | . . . . . . . Terminals . | . . . . . . . Fabricators . | . . . . . . . Repair Stations . | . . . . . . . Recycling Units . | . . . . . . . Scanalyzers . | . . . . . . . Garrison Access . | . . . . . . . Data Cores Recovered . | . . . . . . . Used . | . . . . . . . Hacking Detections 4 | . 1 3 . . . . Full Trace Events 1 | . . 1 . . . . Feedback Events . | . . . . . . . Feedback Blocked . | . . . . . . . Robot Schematics Acquired . | . . . . . . . Robots Built . | . . . . . . . Authchips . | . . . . . . . Time . | . . . . . . . Total Robot Build Rating . | . . . . . . . Part Schematics Acquired 6 | . . 1 . 5 . . Parts Built . | . . . . . . . Authchips . | . . . . . . . Time . | . . . . . . . Total Part Build Rating . | . . . . . . . Parts Repaired . | . . . . . . . Time . | . . . . . . . Parts Recycled . | . . . . . . . Recycled Matter . | . . . . . . . Retrieved Matter . | . . . . . . . Retrieved Components . | . . . . . . . Parts Scanalyzed 1 | . . 1 . . . . Part Schematics Acquired 1 | . . 1 . . . . Parts Damaged . | . . . . . . . Bothacking | -11 -10 -9 -9 -7 -6 -6 ------------ Run | Yrd Mat Mat Min Zio Pro Fac Used RIF Installer . | . . . . . . . Robots Hacked . | . . . . . . . Non-combat . | . . . . . . . Combat . | . . . . . . . Robot Hacks Applied . | . . . . . . . Relay Couplers Released . | . . . . . . . Fabnet Peak Effective % . | . . . . . . . Robots Rewired . | . . . . . . . Allies Hacked . | . . . . . . . Hacks Repelled . | . . . . . . . Allies | -11 -10 -9 -9 -7 -6 -6 -------- Run | Yrd Mat Mat Min Zio Pro Fac Total Allies 6 | . . . 2 4 . . Largest Group 4 | . . . 2 4 4 3 Highest-Rated Group 156 | . . . 39 156 156 115 Highest-Rated Ally 41 | . . . 31 41 41 41 Total Orders . | . . . . . . . Ally Attacks 52 | . . . 4 . 33 15 Total Damage 2072 | . . . 42 . 1594 436 Kills 17 | . . . . . 10 7 Allies Corrupted . | . . . . . . . Allies Melted . | . . . . . . . Intel | -11 -10 -9 -9 -7 -6 -6 ------- Run | Yrd Mat Mat Min Zio Pro Fac Robot Analysis Total . | . . . . . . . Derelict Logs Recovered 2 | . . . 1 1 . . Drone Launches . | . . . . . . . Drone Recoveries . | . . . . . . . Decoded 0b10 Intel 15 | . . . . . . 15 Emergency Access 1 | . . . . . . 1 Items 11 | . . . . . . 11 Machines 1 | . . . . . . 1 Guards 2 | . . . . . . 2 Exploration | -11 -10 -9 -9 -7 -6 -6 ------------- Run | Yrd Mat Mat Min Zio Pro Fac Turns Passed 3139 | 69 154 580 193 768 748 627 Spaces Moved 2236 | 52 121 354 146 605 544 414 Core 7 | 4 . . . . . 3 Treads . | . . . . . . . Legs 2229 | 48 121 354 146 605 544 411 Wheels . | . . . . . . . Hover . | . . . . . . . Flight . | . . . . . . . Fastest Speed 50 | 50 120 120 120 120 125 126 Average Speed 123 | 114 120 120 120 123 125 127 Slowest Speed 150 | 120 120 120 120 125 126 150 Overloaded Moves . | . . . . . . . Propulsion Burnouts . | . . . . . . . Robots Hopped . | . . . . . . . Cave-ins Triggered . | . . . . . . . Exploration Rate (%) 36 | 3 27 31 28 87 71 10 Regions Visited 6 Branch Regions 3 Pre-discovered Areas 1 | . . . . 1 . . Known Exits Taken . | . . . . . . . Unknown Exits Taken 6 | 1 1 1 1 1 1 . Scrap Searched 4 | . . . 1 2 1 . Spaces Dug . | . . . . . . . Terrain Destroyed 98 | . . 39 51 . 8 . Melee . | . . . . . . . Projectile . | . . . . . . . AOE 98 | . . 39 51 . 8 . Terrain Rammed . | . . . . . . . Walls Destroyed . | . . . . . . . Machines Disabled . | . . . . . . . Actions | -11 -10 -9 -9 -7 -6 -6 --------- Run | Yrd Mat Mat Min Zio Pro Fac Total 2496 | 58 125 450 154 626 597 486 Wait 157 | . . 54 . 16 45 42 Move 2230 | 51 120 353 145 604 543 414 Hop . | . . . . . . . Pick Up 16 | 1 1 7 2 2 . 3 Fast Attach 12 | 6 2 1 . 3 . . Attach 8 | . . . 2 . . 6 Detach . | . . . . . . . Swap 3 | . . 3 . . . . Drop 6 | . . 3 . 1 . 2 Fire 63 | . 2 29 5 . 9 18 Melee . | . . . . . . . Ram . | . . . . . . . Kick 1 | . . . . . . 1 Crush . | . . . . . . . Escape Stasis . | . . . . . . . Rewire . | . . . . . . . Trap . | . . . . . . . Miscellaneous . | . . . . . . . Route ------- -11/Scrapyard -10/Materials -9/Materials -9/Mines (discovered 2 exits: [*Mat] / *Zio) -7/Zion -6/Proximity Caves -6/Factory History --------- Turn | Location | Event 6 | -11/Scrapyard | Discovered new exit (range 15) 70 | -11/Scrapyard | Entered Materials 214 | -10/Materials | Discovered new exit (range 8) 224 | -10/Materials | Entered another Materials area 224 | -9/Materials | Evolved 2 slots: Propulsion x2 311 | -9/Materials | Build established: Mutant 763 | -9/Materials | Discovered new exit (range 14) 804 | -9/Materials | Entered Mines 983 | -9/Mines | A Derelict revealed a hidden shortcut to a safe place 989 | -9/Mines | Discovered new exit (range 8) 997 | -9/Mines | Entered Zion 997 | -7/Zion | Accompanied by 2 allies 1047 | -7/Zion | Led the pair of lost Derelicts to a safe place 1143 | -7/Zion | Learned location of Extension (-4) 1396 | -7/Zion | Met Imprinter 1418 | -7/Zion | Imprinted 1421 | -7/Zion | Declared Zion's savior 1733 | -7/Zion | Discovered new exit (range 13) 1765 | -7/Zion | Entered Proximity Caves 1765 | -6/Proximity Caves | Accompanied by 4 allies 1829 | -6/Proximity Caves | Attracted the attention of an 0b10 checkpoint 2465 | -6/Proximity Caves | Discovered new exit (range 17) 2513 | -6/Proximity Caves | Entered Factory 2513 | -6/Factory | Accompanied by 3 allies 2513 | -6/Factory | Evolved 6 slots: Power x1, Propulsion x2, Utility x2, Weapon x1 2818 | -6/Factory | Build established: Skirmisher 2870 | -6/Factory | P-60 Hacker assimilated allied 2N-66V(g) 3092 | -6/Factory | Garrison activated, responded to threat 3140 | -6/Factory | Self-destructed Last Messages --------------- 03131_ U-05 Engineer lays Concrete. 03131_ U-05 Engineer builds a Wall. 03132_ >> DECODED: Power Maul location. 03132_ Mni. Grenade Launcher destroyed. 03132_ Hvy. Machine Gun destroyed. 03132_ U-05 Engineer lays Concrete. 03133_ The unstable cave ceiling collapses. 03133_ Remote Datajack crushed. 03133_ U-05 Engineer builds a Wall. 03133_ U-05 Engineer lays Concrete. 03133_ Imp. Titanium Leg destroyed. 03134_ Ion Engine destroyed. 03134_ U-05 Engineer destroyed. 03134_ U-05 Engineer builds a Wall. 03134_ U-05 Engineer lays Concrete. 03137_ Mak. Power Source destroyed. 03137_ U-05 Engineer destroyed. 03138_ U-05 Engineer lays Concrete. 03139_ U-05 Engineer builds a Wall. [Achievement: 5k Club] Map ----- +----------------------------------------------------+ | ! # # #?# # #?????????? | | ### # ! #?# ####+#############+## | | # #?# | | # ### | | # + | | # ### | | ##############?# %% "" | | ### # #??###+############+##### "" | | # # """"""""" #?? ????# #?? "" | | # # # ? ????#"""" #????? | | # + """"""""" # " " " " "?##"""" #????? | | # # # " " " " " ##"""" #????? | | / # # """"""""" # " " " " " ##"""" #????? | | # # # " " " " " ##"""" #????? | | # # """"""""" # " " " " " ##"""" #????? | | ###= # # " " " " " ## #???? | | !%| # """"""""" # " " " " " ##"""" #?? | | !*!% # # " " " " " ##"""" # | | %= # """"""""" # " " " " " ##"""" + | | =%= # # ##"""" # | | [ ################+###+######"""" #?? | | #########????# #[#?# ######"""" #???? | | #???????# #=## + R ! #????? | | """ #???????# =# ;;;;; #????? | | """ #??????????? * % !! ;;;;##########????? | | """ #???????###+#?#### %@== ;##????????????? | | """ #???????# !# #[= = ; #????????????? | | """ #???????# #u"" d #????????????? | | """ #???????+ = T" s #????????????? | | #???????# # Y #????????????? | | #???????# ?# ! [ #????????????? | | #???????###???# p= #????????????? | | #???????? # #! #????????????? | | #???????? """ ## ### ##????????????? | | ######?????????""" ?#s#?## ##?????????????? | | ???????????????""" ""?# #??###s###??????????????? | | ??????????????? ""?# #????# #????????????????? | | ?????????????? """ G?# ???? #????????????????? | | ?????????????# """ "??# ???? ??????????????/?? | | ?????????????? """ "??# ???? ????????????????? | | ???????????????? ???# ????""" ???????????????? | | ????????????????####???# ????""" ???????????????? | | ???????????????????????# ???""" ???/???????????? | | ??????????????????/?????!*!??? ? ??????????????? | | ????????????????????????!*!??????????????????????? | | ????????????????????????**!??????????????????????? | | ???????????????????????? ???????????????????????? | | ?????????????????????????????????????????????????? | | ?????????????????????????????????????????????????? | | ?????????????????????????????????????????????????? | +----------------------------------------------------+ Best States ------------- Heat Dissipation 37 Energy Generation 20 Energy Capacity 320 Matter Stores 300 Matter Capacity 300 Sight Range 18 Terrain Scan Density 10 Resistance: KI 20 Resistance: TH 20 Resistance: EX 20 Resistance: EM 20 Resistance: I 20 Resistance: S 20 Resistance: P 20 Evasion (%) 55 Offensive Hacking 10 Item Schematics ----------------- Datajack | -9/Materials | Scanalyzed Hvy. Battle Rifle | -7/Zion | Free Slug Cannon | -7/Zion | Free Barrage Gun | -7/Zion | Free Hvy. Riot Gun | -7/Zion | Free Battle Cannon | -7/Zion | Free Robot Schematics ------------------ None Fabricated ------------ Nothing Alien Tech Used ----------------- None Achievements -------------- 5k Club I'm Back, Baby! Let's See Who's Tougher Storm Trooper Troublemaker Challenges ------------ None Game ------ Seed VisualCompanionFilter Manual? 0 Play Time 00:25:50 Cumulative 2.9 hours Start 2024.10.26 @ 10:01:39 End 2024.10.26 @ 10:26:09 Sessions 1 Manual Loads 0 Difficulty Adventurer Special Mode None Game No. 11 Rogue 3 Adventurer 7 Explorer 1 Win Type - Total 0 Types 0/0/0/0/0/0/0/0/0 Lore% 1 Gallery% 5 Achievement% 8 Wizard Run 0 Options --------- Layout 0 ASCII 0 Keyboard 0 Movement Mouse Keybinds 0 Fullscreen 1 Font 24/Terminus Map View 113x50 Zoom Use 0% Tactical HUD 1 Map Filters NONE Filters NONE Steam 1 RUN: 4f5f0530-340b-4c1d-96ad-0e1d424e5d50